fUSD/lending_fUSD_20240508
["ID","MTS","AMOUNT","RATE_DAILY","PERIOD"]
[326652999,1715201434708,-569.99999994,0.00013,2]
[326653000,1715201434719,-351.899999,0.00013,2]
[326653001,1715201434732,-479.17421262,0.00013,2]
[326653002,1715201434745,-1233.72140755,0.00013,2]
[326653003,1715201434757,-2779.09994212,0.00013,2]
[326653004,1715201434768,-801.39287515,0.00013,2]
[326653005,1715201434784,-2896.16618637,0.00013,2]
[326653006,1715201434796,-7156.47814574,0.00013,2]
[326653007,1715201434808,-5331.93023078,0.00013,2]
[326653008,1715201434819,-3813.17988348,0.00013,2]
[326653009,1715201434833,-725.86856105,0.00013,2]
[326653010,1715201434845,-560.2023371,0.00013,2]
[326653011,1715201434856,-16633.06655491,0.00013,2]
[326653012,1715201434868,-2719.05049637,0.00013,2]
[326653013,1715201434879,-979.38,0.00013,2]
[326653014,1715201434891,-567.8486315,0.00013,2]
[326653015,1715201434903,-6167.6,0.00013,2]
[326653016,1715201434916,-8985.72635901,0.00013,2]
[326653017,1715201448940,-363.15835316,0.00012898,2]
[326653022,1715201448950,-256.6818575,0.00012999,2]
[326653025,1715201448962,-293.01320047,0.00012999,2]
[326653028,1715201448979,-264.31683649,0.00012999,2]
[326653030,1715201448989,-176.54714802,0.00012999,2]
[326653072,1715201451275,-148.59879732,0.00012999,2]
[326653078,1715201451285,-807.15113855,0.00012999,2]
[326653083,1715201451294,-192.98421545,0.00012999,2]
[326653087,1715201451304,-204.34387367,0.00012999,2]
[326653092,1715201451313,-435.44709088,0.00012999,2]
[326653097,1715201451323,-1860448.85892331,0.00013,2]
[326653101,1715201451332,-269780.13435741,0.00013,2]
[326653104,1715201451341,-1481.80876653,0.00013225,2]
[326653107,1715201451351,-1217.02437432,0.00013328,2]
[326653109,1715201451360,-156.14,0.00013425,2]
[326653112,1715201451370,-165.2,0.00013425,2]
[326653115,1715201451379,-158.15,0.00013796,2]
[326653117,1715201451387,-820.06,0.00013809,2]
[326653119,1715201451396,-158.15,0.00013813,2]
[326653121,1715201451405,-158.15,0.0001383,2]
[326653123,1715201451414,-158.15,0.00013847,2]
[326653124,1715201451423,-158.15,0.00013865,2]
[326653126,1715201451432,-150.11,0.00014335,2]
[326653128,1715201451442,-282.95529416,0.00014411,2]
[326653130,1715201451451,-1217.02437432,0.00014756,2]
[326653132,1715201451461,-169.5,0.00014826,2]
[326653134,1715201451470,-1093.94,0.00014826,2]
[326653136,1715201451479,-256.26,0.00014826,2]
[326653138,1715201451488,-701.35,0.00014826,2]
[326653140,1715201451498,-1481.80876646,0.00014903,2]
[326653141,1715201451508,-4692.74,0.00014945,2]
[326653142,1715201451517,-820.06,0.00015344,2]
[326653143,1715201451528,-282.95529416,0.00015921,2]
[326653144,1715201451537,-9999.99,0.00016116,2]
[326653146,1715201451547,-150.11,0.00016127,2]
[326653148,1715201451557,-1217.02437432,0.00016185,2]
[326653150,1715201451568,-1358.42,0.00016438,2]
[326653152,1715201451577,-1481.80876646,0.0001658,2]
[326653154,1715201451588,-256.26,0.0001668,2]
[326653156,1715201451598,-820.06,0.00016878,2]
[326653158,1715201451608,-282.95529416,0.00017432,2]
[326653160,1715201451618,-1093.94,0.00017566,2]
[326653162,1715201451627,-1217.02437432,0.00017614,2]
[326653164,1715201451636,-2728.89324563,0.0001788,2]
[326653166,1715201451645,-2728.8932456,0.0001788,2]
[326653168,1715201451656,-2728.8932456,0.0001788,2]
[326653170,1715201451665,-2728.8932456,0.0001788,2]
[326653172,1715201451675,-1213.01893647,0.0001788,2]
[326653174,1715201451684,-1213.0189364,0.0001788,2]
[326653176,1715201451694,-1213.0189364,0.0001788,2]
[326653178,1715201451703,-1213.0189364,0.0001788,2]
[326653180,1715201451712,-1050.0,0.00018,3]
[326653183,1715201451721,-1481.80876646,0.00018258,2]
[326653185,1715201451731,-820.06,0.00018412,2]
[326653188,1715201451740,-3791.0,0.000185,3]
[326653191,1715201451750,-256.26,0.00018533,2]
[326653194,1715201451759,-1600.0,0.000189,6]
[326653197,1715201451769,-282.95529416,0.00018942,2]
[326653200,1715201451778,-158.5390509,0.0001899,2]
[326653201,1715201451788,-151.81,0.0001899,2]
[326653203,1715201451797,-151.81,0.0001899,2]
[326653205,1715201451806,-500.0,0.00018999,2]
[326653207,1715201451816,-5000.0,0.00019,2]
[326653209,1715201451825,-500545.45524023,0.00019,2]
[326653211,1715201451837,-521135.57700829,0.00019,2]
[326653214,1715201451849,-2167.08095881,0.00019,2]
[326653216,1715201451860,-10627.4478,0.00019,2]
[326653218,1715201451871,-16760.524477,0.00019,2]
[326653220,1715201451882,-2959.85,0.00019,2]
[326653222,1715201451892,-616.0,0.00019,2]
[326653226,1715201451953,-57060.95638477,0.00019,2]
[326653227,1715201451964,-1217.02437432,0.00019043,2]
[326653228,1715201451974,-150.49,0.00019178,2]
[326653229,1715201451986,-194.26,0.000192,2]
[326653230,1715201451995,-318.95,0.000192,2]
[326653231,1715201452004,-265.39,0.000192,2]
[326653232,1715201452014,-2728.8932456,0.00019339,2]
[326653233,1715201452024,-1213.0189364,0.00019339,2]
[326653234,1715201452036,-566.16448831,0.0001965,2]
[326653235,1715201452045,-150.5,0.00019696,15]
[326653236,1715201452057,-150.5,0.00019706,15]
[326653237,1715201452164,-150.5,0.00019716,15]
[326653238,1715201452188,-1481.80876646,0.00019936,2]
[326653239,1715201452214,-202.39861603,0.0002,2]
[326653240,1715201452246,-155.33392723,0.0002,2]
[326653241,1715201452289,-184.05186467,0.0002,2]
[326653242,1715201452308,-5175.72990395,0.0002,2]
[326653243,1715201452318,-860.48028371,0.0002,2]
[326653244,1715201452328,-6227.01127323,0.0002,2]
[326653245,1715201452338,-302.0,0.0002,30]
[326653246,1715201452349,-1299.5405097,0.0002,3]
[326653247,1715201452358,-1100.0,0.0002,3]
[326653248,1715201452367,-1114.29730688,0.0002,2]
[326653249,1715201452376,-157.52891813,0.00020086,2]
[326653250,1715201452385,-153.07187295,0.00020135,2]
[326653251,1715201452394,-157.52891813,0.00020139,2]
[326653252,1715201452404,-282.13776846,0.00020155,2]
[326653253,1715201452414,-1093.94,0.00020306,2]
[326653254,1715201452423,-150.07562792,0.00020353,2]
[326653255,1715201452433,-282.13776846,0.00020382,2]
[326653256,1715201452442,-256.26,0.00020386,2]
[326653257,1715201452451,-158.61739138,0.00020391,2]
[326653258,1715201452461,-1217.02437432,0.00020471,2]
[326653259,1715201452471,-150.0,0.000205,2]
[326653260,1715201452480,-499.99,0.00020546,2]
[326653261,1715201452490,-154.53529014,0.00020561,2]
[326653262,1715201452499,-154.53529014,0.00020572,2]
[326653263,1715201452508,-282.13776846,0.00020708,2]
[326653264,1715201452518,-150.07562792,0.00020738,2]
[326653265,1715201452527,-684.58,0.00020756,2]
[326653266,1715201452536,-499.60775507,0.00020897,2]
[326653267,1715201452545,-152.42819969,0.00020958,2]
[326653268,1715201452555,-718.82272761,0.00021,2]
[326653269,1715201452564,-194.26,0.00021,2]
[326653270,1715201452573,-318.95,0.00021,2]
[326653271,1715201452585,-265.39,0.00021,2]
[326653272,1715201452599,-150.0,0.00021,2]
[326653273,1715201452609,-154.14732117,0.00021162,2]
[326653274,1715201452619,-2728.8932456,0.000212,2]
[326653275,1715201452628,-1213.0189364,0.000212,2]
[326653276,1715201452637,-10000.0,0.0002121,2]
[326653277,1715201452647,-282.13776846,0.00021233,2]
[326653278,1715201452656,-282.13776846,0.00021343,2]
[326653279,1715201452665,-153.94026568,0.00021358,2]
[326653280,1715201452674,-154.14732117,0.00021361,2]
[326653281,1715201452683,-156.99695836,0.00021453,2]
[326653282,1715201452692,-154.14732117,0.00021484,2]
[326653283,1715201452701,-150.0,0.000215,3]
[326653284,1715201452710,-152.19,0.00021589,15]
[326653285,1715201452719,-1481.80876646,0.00021614,2]
[326653286,1715201452728,-33642.86060961,0.0002177,2]
[326653287,1715201452737,-154.96039253,0.00021771,2]
[326653288,1715201452746,-21518.05949525,0.00021778,2]
[326653289,1715201452755,-928.695,0.0002178,2]
[326653290,1715201452764,-164.99312671,0.0002178,2]
[326653291,1715201452774,-164.99312671,0.0002178,2]
[326653292,1715201452783,-300.0,0.000218,7]
[326653293,1715201452792,-3499.67939162,0.00021817,2]
[326653294,1715201452801,-200.0,0.00021824,2]
[326653295,1715201452810,-200.0,0.00021824,2]
[326653296,1715201452819,-1000.0,0.00021824,2]
[326653297,1715201452829,-500.0,0.00021824,2]
[326653298,1715201452838,-200.0,0.00021824,2]
[326653299,1715201452848,-1331.0,0.000219,2]
[326653300,1715201452856,-1082.0595,0.000219,2]
[326653301,1715201452866,-1000.0,0.000219,2]
[326653302,1715201452875,-300.0,0.000219,7]
[326653303,1715201452885,-4377.93002374,0.000219,2]
[326653304,1715201452894,-155.0,0.000219,2]
[326653305,1715201452903,-1000.0,0.000219,2]
[326653306,1715201452912,-615.1105,0.000219,2]
[326653307,1715201452921,-210.9973,0.000219,2]
[326653308,1715201452931,-1217.02437432,0.000219,2]
[326653309,1715201452940,-1000.0,0.000219,2]
[326653310,1715201452949,-1250.0,0.000219,2]
[326653311,1715201452959,-1000.0,0.00021918,2]
[326653312,1715201452969,-1000.0,0.00021918,2]
[326653313,1715201452981,-1000.0,0.00021918,2]
[326653314,1715201452990,-1000.0,0.00021918,2]
[326653315,1715201452999,-1000.0,0.00021918,2]
[326653316,1715201453009,-1000.0,0.00021918,2]
[326653317,1715201453019,-1000.0,0.00021918,2]
[326653318,1715201453030,-1000.0,0.00021918,2]
[326653319,1715201453040,-1000.0,0.00021918,2]
[326653320,1715201453050,-1000.0,0.00021918,2]
[326653321,1715201453062,-1000.0,0.00021918,2]
[326653322,1715201453071,-1030.0,0.00021918,2]
[326653323,1715201453080,-2000.0,0.00021918,2]
[326653324,1715201453090,-250.0,0.00021918,2]
[326653325,1715201453100,-201.26332486,0.00021918,2]
[326653326,1715201453109,-156.71892795,0.00021932,2]
[326653327,1715201453119,-2067.41781312,0.00021932,2]
[326653328,1715201453129,-150.5,0.0002197,15]
[326653329,1715201453138,-1200.0,0.0002197,2]
[326653330,1715201453148,-150.5,0.0002198,15]
[326653331,1715201453158,-427.88605358,0.00021987,2]
[326653332,1715201453167,-150.5,0.0002199,15]
[326653333,1715201453177,-85309.75249199,0.0002199,2]
[326653334,1715201453187,-290477.13013703,0.0002199,2]
[326653335,1715201453196,-151.81,0.0002199,2]
[326653336,1715201453206,-151.81,0.0002199,2]
[326653337,1715201453215,-151.81,0.0002199,2]
[326653338,1715201453224,-151.81,0.0002199,2]
[326653339,1715201453234,-151.81,0.0002199,2]
[326653340,1715201453243,-1017.42,0.00021991,2]
[326653341,1715201453253,-1413.335,0.00021991,2]
[326653342,1715201453262,-2329.598,0.00021991,2]
[326653343,1715201453272,-1257.0,0.00021991,2]
[326653344,1715201453282,-1788.0,0.00021991,2]
[326653345,1715201453291,-1226.0,0.00021991,2]
[326653346,1715201453300,-543.734,0.00021991,2]
[326653347,1715201453310,-809.0,0.00021991,2]
[326653348,1715201453320,-448.981,0.00021991,2]
[326653349,1715201453329,-421.0,0.00021991,2]
[326653350,1715201453339,-438.0,0.00021991,2]
[326653351,1715201453349,-611.0,0.00021991,2]
[326653352,1715201453359,-438.0,0.00021991,2]
[326653353,1715201453439,-209.0,0.00021991,2]
[326653354,1715201453449,-150.0,0.00021991,2]
[326653355,1715201453459,-2450.0,0.00021991,2]
[326653356,1715201453468,-1478.0,0.00021991,2]
[326653357,1715201453477,-215.0,0.00021991,2]
[326653358,1715201453487,-444.0,0.00021991,2]
[326653359,1715201453497,-1645.0,0.00021991,2]
[326653360,1715201453507,-1129.0,0.00021991,2]
[326653361,1715201453517,-3154.0,0.00021991,2]
[326653362,1715201453526,-37800.0,0.00021991,2]
[326653363,1715201453536,-349.0,0.00021991,2]
[326653364,1715201453546,-2295.0,0.00021991,2]
[326653365,1715201453555,-871.098,0.00021991,2]
[326653366,1715201453565,-202.996,0.00021991,2]
[326653367,1715201453575,-155.0,0.00021998,2]
[326653368,1715201453584,-2511.97227395,0.00021998,2]
[326653369,1715201453595,-7658.01342953,0.00021998,2]
[326653370,1715201453604,-1108.22135213,0.00021998,2]
[326653371,1715201453612,-155.0,0.00021998,2]
[326653372,1715201453622,-155.51521148,0.00021998,2]
[326653373,1715201453632,-155.20637958,0.00021998,2]
[326653374,1715201453641,-155.76704409,0.00021998,2]
[326653375,1715201453651,-155.30629382,0.00021998,2]
[326653376,1715201453661,-642.3977412,0.00021998,2]
[326653377,1715201453671,-1259.96596893,0.00021998,2]
[326653378,1715201453680,-155.76371022,0.00021998,2]
[326653379,1715201453690,-9376.85363929,0.00021998,2]
[326653380,1715201453699,-494.144759,0.00021998,2]
[326653381,1715201453709,-202.8265,0.00021998,2]
[326653382,1715201453719,-7505.26883546,0.00021998,2]
[326653383,1715201453728,-155.40867323,0.00021998,2]
[326653384,1715201453737,-155.20047157,0.00021998,2]
[326653385,1715201453747,-155.27839442,0.00021998,2]
[326653386,1715201453756,-219.31968758,0.00021998,2]
[326653387,1715201453765,-158.82332061,0.00021998,2]
[326653388,1715201453774,-1414.81668205,0.00021998,2]
[326653389,1715201453783,-156.20328644,0.00021998,2]
[326653390,1715201453792,-156.37954986,0.00021998,2]
[326653391,1715201453802,-1502.70835179,0.00021998,2]
[326653392,1715201453811,-521.8596669,0.00021998,2]
[326653393,1715201453820,-164.14462552,0.00021998,2]
[326653394,1715201453837,-1108.8358232,0.00021998,2]
[326653395,1715201453849,-250.10468562,0.00021998,2]
[326653396,1715201453860,-203.73096733,0.00021998,2]
[326653397,1715201453870,-188.65310695,0.00021998,2]
[326653398,1715201453880,-6757.61638509,0.00021998,2]
[326653399,1715201453891,-166.05665074,0.00021998,2]
[326653400,1715201453900,-1000.0,0.00021999,2]
[326653401,1715201453910,-207.70279797,0.00021999,2]
[326653402,1715201453920,-4425.37683477,0.00021999,2]
[326653403,1715201453929,-1733.93943,0.00021999,2]
[326653404,1715201453939,-313386.15498995,0.00022,5]
[326653405,1715201453949,-308.2,0.00022,2]
[326653406,1715201453968,-218124.87913586,0.00022,2]
[326653407,1715201453989,-1020366.64,0.00022,2]
[326653408,1715201454005,-546.4241888,0.00022,2]
[326653409,1715201454026,-1168399.92572658,0.00022,2]
[326653410,1715201454053,-459640.49469784,0.00022,2]
[326653411,1715201454072,-568064.06329415,0.00022,2]
[326653412,1715201454096,-1778.1521,0.00022,2]
[326653413,1715201454114,-1235.48,0.00022,2]
[326653414,1715201454483,-1103.21630037,0.00022,2]
[326653415,1715201454502,-1500.0,0.00022,2]
[326653416,1715201454520,-1234.0,0.00022,2]
[326653417,1715201454539,-1535.91534395,0.00022,2]
[326653418,1715201580492,-155.0,9.851e-05,2]
[326653419,1715201582640,-1062.48242938,9.851e-05,2]
[326653420,1715201604345,-155.0,9.851e-05,2]
[326653421,1715201605706,364.43738057,9.851e-05,2]
[326653422,1715201700268,-859.05112489,9.851e-05,2]
[326653423,1715201711458,-445.69192529,9.851e-05,2]
[326653425,1715202120967,-207.13458287,9.851e-05,2]
[326653426,1715202549872,-377.64031547,0.0001,2]
[326653463,1715202637415,-207.13458287,9.999e-05,2]
[326653464,1715202637434,-31.57869503,0.0001,2]
[326653465,1715202637450,-159.75050643,0.0001,2]
[326653466,1715202637467,-457.43496325,0.0001,2]
[326653467,1715202637484,-159.75050637,0.00010729,2]
[326653468,1715202637500,-159.75050637,0.00011558,2]
[326653469,1715202637516,-457.43496324,0.00011923,2]
[326653470,1715202637532,-150.0,0.00011999,2]
[326653471,1715202637548,-5754.9249707,0.00012,2]
[326653472,1715202637564,-758.01478197,0.00012349,2]
[326653473,1715202637582,-159.75050637,0.00012387,2]
[326653474,1715202637599,-150.99,0.00012387,2]
[326653475,1715202637615,-150.99,0.00012387,2]
[326653476,1715202637631,-342.82781195,0.00012999,2]
[326653477,1715202637646,-155.48017252,0.00012999,2]
[326653478,1715202637661,-2160.68,0.00012999,2]
[326653479,1715202637677,-159.75050637,0.00013216,2]
[326653480,1715202637693,-155.03386847,0.000136,2]
[326653481,1715202637711,-395.29395573,0.00013945,2]
[326653482,1715202637732,-62.14100751,0.00013945,2]
[326653483,1715202637916,-19571.71795071,0.00014,2]
[326653484,1715202637942,-159.75050637,0.00014045,2]
[326653485,1715202637953,-1000.0,0.00014825,2]
[326653486,1715202637964,-1000.0,0.00014825,2]
[326653487,1715202637975,-688.49,0.00014826,2]
[326653488,1715202637986,-5439.1,0.00014826,2]
[326653489,1715202637997,-342.45,0.00014826,2]
[326653490,1715202638010,-2751.0,0.00014826,2]
[326653491,1715202638020,-250.0,0.00014826,2]
[326653492,1715202638032,-256.26,0.00014826,2]
[326653493,1715202638044,-96.82890387,0.00014874,2]
[326653494,1715202638058,-62.9216025,0.00014874,2]
[326653495,1715202638069,-209.50102838,0.000149,2]
[326653496,1715202638080,-209.50102837,0.000149,2]
[326653497,1715202638091,-306.88,0.00015438,2]
[326653498,1715202638102,-1431.18,0.00015529,2]
[326653499,1715202638113,-159.75050637,0.00015704,2]
[326653500,1715202638124,-200.0,0.00016123,2]
[326653501,1715202638135,-165.2,0.00016156,2]
[326653502,1715202638146,-500.0,0.00016255,2]
[326653503,1715202638157,-3113.65,0.00016438,2]
[326653504,1715202638168,-159.75050637,0.00016533,2]
[326653505,1715202638181,-169.5,0.00016581,2]
[326653506,1715202638192,-688.49,0.0001668,2]
[326653507,1715202638204,-159.75050637,0.00017362,2]
[326653508,1715202638215,-1748.69131799,0.00018,3]
[326653509,1715202638227,-1050.0,0.00018,3]
[326653510,1715202638242,-159.75050637,0.00018191,2]
[326653511,1715202638254,-688.49,0.00018533,2]
[326653512,1715202638265,-838.0,0.000187,3]
[326653513,1715202638276,-3911.0,0.000188,3]
[326653514,1715202638287,-1822.20816756,0.0001892,2]
[326653515,1715202638298,-250.0,0.00018974,2]
[326653516,1715202638309,-506.7,0.0001899,3]
[326653517,1715202638320,-5000.0,0.00019,2]
[326653518,1715202638331,-32495.61797638,0.00019,2]
[326653519,1715202638346,-611.71059997,0.00019,2]
[326653520,1715202638361,-339.76818,0.00019,2]
[326653521,1715202638374,-12490.13501114,0.00019,2]
[326653522,1715202638389,-574.32971375,0.00019,2]
[326653523,1715202638402,-5869.48428717,0.00019,2]
[326653524,1715202638415,-1451.51509444,0.00019,2]
[326653525,1715202638431,-65757.0961908,0.00019,2]
[326653526,1715202638444,-972.78371825,0.00019,2]
[326653528,1715202642713,-438.91764752,0.00015492,2]
[326653530,1715202642726,-2145.76887824,0.00015492,2]
[326653532,1715202642738,-479.77795545,0.00015492,2]
[326653534,1715202642750,-7417.41648889,0.00015492,2]
[326653536,1715202642762,-3337.5717888,0.00015492,2]
[326653537,1715202642774,-1411.00178076,0.00015492,2]
[326653538,1715202642786,-446.23632906,0.00015492,2]
[326653539,1715202642799,-8223.30913128,0.00015492,2]
[326653540,1715202642808,-20640.66769949,0.00019,2]
[326653541,1715202642820,-6556.4,0.00019,2]
[326653542,1715202642834,-4556.08170398,0.00019,2]
[326653546,1715202642936,-13951.51196249,0.00019,2]
[326653548,1715202642946,-159.75050637,0.0001902,2]
[326653550,1715202642956,-291.71,0.0001912,2]
[326653552,1715202642966,-200.0,0.00019167,2]
[326653554,1715202642976,-274.34,0.00019178,2]
[326653556,1715202642986,-177.95,0.00019205,2]
[326653558,1715202642996,-231.61,0.00019414,2]
[326653560,1715202643006,-1031.375248,0.0001945,2]
[326653562,1715202643018,-1469.39073183,0.0001945,2]
[326653565,1715202643031,-675.13887568,0.0001945,2]
[326653567,1715202643043,-320.59390742,0.0001945,2]
[326653569,1715202643053,-428.42,0.00019574,2]
[326653571,1715202643063,-428.42,0.00019579,2]
[326653573,1715202643073,-428.42,0.00019584,2]
[326653575,1715202643084,-428.42,0.00019589,2]
[326653577,1715202643095,-428.42,0.00019594,2]
[326653579,1715202643105,-428.42,0.00019599,2]
[326653581,1715202643115,-428.42,0.00019605,2]
[326653583,1715202643124,-428.42,0.0001961,2]
[326653585,1715202643133,-428.42,0.00019615,2]
[326653587,1715202643144,-428.42,0.0001962,2]
[326653589,1715202643155,-428.42,0.00019625,2]
[326653591,1715202643165,-428.42,0.0001963,2]
[326653593,1715202643177,-428.42,0.00019636,2]
[326653595,1715202643187,-428.42,0.00019641,2]
[326653597,1715202643197,-428.42,0.00019646,2]
[326653599,1715202643207,-428.42,0.00019651,2]
[326653600,1715202643218,-428.42,0.00019656,2]
[326653601,1715202643229,-428.42,0.00019661,2]
[326653602,1715202643240,-428.42,0.00019666,2]
[326653603,1715202643251,-428.42,0.00019672,2]
[326653604,1715202643262,-159.75050637,0.00019849,2]
[326653605,1715202643273,-11442.46056146,0.000199,2]
[326653606,1715202643283,-11442.46056145,0.00019961,2]
[326653607,1715202643294,-271.85999851,0.0002,2]
[326653608,1715202643305,-805.72407415,0.0002,2]
[326653609,1715202643414,-964.70636999,0.0002,2]
[326653610,1715202643432,-1100.0,0.0002,3]
[326653611,1715202643444,-1867.51913402,0.0002,2]
[326653612,1715202643459,-733.66745035,0.0002,2]
[326653613,1715202643468,-153.90934621,0.00020189,2]
[326653614,1715202643479,-170.56,0.00020227,2]
[326653615,1715202643489,-153.71241166,0.0002024,2]
[326653616,1715202643499,-152.79643266,0.00020272,2]
[326653617,1715202643509,-3057.6850356,0.00020327,2]
[326653618,1715202643521,-940.33955,0.00020327,2]
[326653619,1715202643533,-1637.09935816,0.00020327,2]
[326653620,1715202643544,-4441.51577064,0.00020327,2]
[326653621,1715202643554,-688.49,0.00020386,2]
[326653622,1715202643564,-207.56286674,0.00020453,2]
[326653623,1715202643574,-1822.20816752,0.0002046,2]
[326653624,1715202643584,-150.0,0.000205,2]
[326653625,1715202643594,-233.07564891,0.00020655,2]
[326653626,1715202643604,-159.75050637,0.00020678,2]
[326653627,1715202643614,-23.65265855,0.00020757,2]
[326653628,1715202643626,-308.70257922,0.00020757,2]
[326653629,1715202643638,-746.89027862,0.00020757,2]
[326653630,1715202648192,-1098.34921333,0.0001,2]
[326653632,1715202648202,-4359.85448361,0.00020757,2]
[326653634,1715202648212,-444.0,0.00020778,2]
[326653636,1715202648221,-263.19630306,0.00020778,2]
[326653641,1715202652099,-164.82,0.0001899,2]
[326653644,1715202652108,-207.13458287,0.00019451,2]
[326653647,1715202652118,-67.1511746,0.00020778,2]
[326653650,1715202652130,-588.22552234,0.00020778,2]
[326653653,1715202652140,-246.07626318,0.00020778,2]
[326653657,1715202652151,-2872.55773682,0.00020778,2]
[326653660,1715202652160,-5736.0,0.00020793,2]
[326653662,1715202652169,-16773.28226992,0.00020793,2]
[326653665,1715202652182,-368.59145831,0.00020793,2]
[326653667,1715202652194,-320.4194344,0.00020793,2]
[326653669,1715202652205,-1276.4995102,0.00020793,2]
[326653672,1715202652222,-19061.20732717,0.00020793,2]
[326653673,1715202652231,-2295.0,0.00020793,2]
[326653675,1715202652240,-5899.0,0.00020793,2]
[326653677,1715202652250,-892.00397844,0.00020896,2]
[326653680,1715202652260,-153.725982,0.00020906,2]
[326653682,1715202652269,-207.56286674,0.00020917,2]
[326653683,1715202652279,-716.44946922,0.00021,2]
[326653685,1715202652288,-150.0,0.00021,2]
[326653686,1715202652298,-11442.46056145,0.00021001,2]
[326653687,1715202652313,-207.56286674,0.00021063,2]
[326653688,1715202652323,-154.278697,0.00021065,2]
[326653689,1715202652334,-269.43582416,0.0002109,2]
[326653690,1715202652343,-206.637713,0.00021096,2]
[326653691,1715202652358,-300986.0,0.000211,2]
[326653692,1715202652368,-207.56286674,0.00021101,2]
[326653693,1715202652471,-5142.6658672,0.0002121,2]
[326653694,1715202652482,-151.050905,0.00021348,2]
[326653695,1715202652491,-166.68129127,0.00021356,2]
[326653696,1715202652501,-153.90934621,0.00021361,2]
[326653697,1715202652511,-157.23123844,0.00021406,2]
[326653698,1715202652520,-157.050905,0.00021448,2]
[326653699,1715202652531,-154.53529014,0.00021458,2]
[326653700,1715202652541,-154.03003872,0.00021459,2]
[326653701,1715202652551,-362.25087703,0.00021497,2]
[326653702,1715202652560,-1000.0,0.00021498,2]
[326653703,1715202652570,-1124.65751877,0.000215,2]
[326653704,1715202652579,-150.0,0.000215,3]
[326653705,1715202652590,-157.050905,0.00021548,2]
[326653706,1715202652600,-152.19,0.00021589,15]
[326653707,1715202652609,-233.07564891,0.00021614,2]
[326653708,1715202652618,-414.79,0.00021644,2]
[326653709,1715202652627,-868.14,0.00021644,2]
[326653710,1715202652638,-414.79,0.00021644,2]
[326653711,1715202652647,-868.14,0.00021644,2]
[326653712,1715202652657,-414.79,0.00021644,2]
[326653713,1715202652666,-414.79,0.00021644,2]
[326653714,1715202652675,-157.050905,0.00021648,2]
[326653715,1715202652686,-271.9617,0.000217,2]
[326653716,1715202652696,-414.79,0.00021703,2]
[326653717,1715202652705,-1736.28,0.00021703,2]
[326653718,1715202652715,-157.050905,0.00021748,2]
[326653719,1715202652724,-251.74141407,0.00021778,2]
[326653720,1715202652734,-164.99312671,0.0002178,2]
[326653721,1715202652743,-8074.8189,0.000218,2]
[326653722,1715202652753,-3721.9171,0.000218,2]
[326653723,1715202652763,-1835.2682,0.000218,2]
[326653724,1715202652772,-7500.0,0.000218,2]
[326653725,1715202652782,-153.48495476,0.000218,2]
[326653726,1715202652791,-800.0,0.00021808,2]
[326653727,1715202652801,-233.07564891,0.00021817,2]
[326653728,1715202652810,-1000.0,0.00021823,2]
[326653729,1715202652820,-200.0,0.00021824,2]
[326653730,1715202652829,-1000.0,0.00021824,2]
[326653731,1715202652838,-1000.0,0.00021824,2]
[326653732,1715202652848,-200.0,0.00021824,2]
[326653733,1715202652857,-500.0,0.00021824,2]
[326653734,1715202652867,-200.0,0.00021824,2]
[326653735,1715202652876,-231.61,0.0002184,2]
[326653736,1715202652885,-157.050905,0.00021848,2]
[326653737,1715202652901,-1655.53887033,0.00021852,2]
[326653738,1715202652911,-1561.86172371,0.00021863,2]
[326653739,1715202652923,-153.41,0.0002189,2]
[326653740,1715202652934,-164.82,0.0002189,2]
[326653741,1715202652944,-245000.0,0.000219,2]
[326653742,1715202652954,-39106.358,0.000219,2]